Cogmind - Beta 13 @@@ ROGUE MODE // 2024.04.24 @ 01:54:53 Player: skelll Result: Self-destructed Performance ------------- Evolutions (1) 500 Regions Visited (3) 600 Robots Destroyed (37) 185 Value Destroyed (1018) 1018 Prototype IDs (3) 60 Alien Tech Used (0) 0 Bonus (0) 0 TOTAL SCORE: 2363 Bonus ------- None Cogmind --------- Core Integrity 87/400 Matter 196/300 Energy 240/280 System Corruption 24% Temperature Critical (637) Movement Core (500) Ox9 Location -9/Storage Parts ------- > --- POWER (1) -------- Heavy Ion Engine > --- PROPULSION (2) --- (None) > --- UTILITY (3) ------ Medium Storage Unit ECM Suite > --- WEAPON (3) ------- Beam Rifle Advanced Beam Cannon Improved Assault Rifle > --- INVENTORY (10) --- Ion Engine Light Ion Engine Heavy Assault Rifle Light Cannon EMP Blaster EMP Blaster EMP Blaster Improved Datajack Mining Laser Peak State ------------ > --- POWER ------------ Heavy Ion Engine > --- PROPULSION ------- Wheel Wheel > --- UTILITY ---------- Medium Storage Unit ECM Suite Shield Generator > --- WEAPON ----------- Particle Cannon Advanced Beam Cannon Improved Assault Rifle > --- INVENTORY -------- Ion Engine Light Ion Engine Beam Rifle Heavy Assault Rifle Light Cannon EMP Blaster EMP Blaster EMP Blaster Improved Datajack Mining Laser [Rating: 18] Favorites ----------- Power Ion Engine Engine Ion Engine Power Core Light Nuclear Core Propulsion Compact Wheel Leg Improved Aluminum Leg Wheel Compact Wheel Utility Medium Storage Unit Device ECM Suite Storage Medium Storage Unit Processor Targeting Computer Protection Hardened Medium Armor Plating Weapon Assault Rifle Energy Gun Beam Rifle Energy Cannon Particle Cannon Ballistic Gun Assault Rifle Launcher Grenade Launcher Special Weapon Mining Laser Build | -11 -10 -9 -9 ------- Run | Yrd Mat Mat Sto Slots Evolved 2 | . . 2 . Power . | . . . . Propulsion . | . . . . Utility 1 | . . 1 . Weapon 1 | . . 1 . Parts Attached 47 | 7 6 12 22 Power 6 | 1 . 2 3 Engine 5 | 1 . 1 3 Core 1 | . . 1 . Reactor . | . . . . Propulsion 12 | 2 4 4 2 Treads . | . . . . Leg 4 | . 4 . . Wheel 8 | 2 . 4 2 Hover . | . . . . Flight . | . . . . Utility 9 | 1 2 2 4 Device 2 | . . . 2 Storage 2 | 1 1 . . Processor 2 | . 1 . 1 Hackware . | . . . . Protection 3 | . . 2 1 Artifact . | . . . . Weapon 20 | 3 . 4 13 Energy Gun 3 | . . . 3 Energy Cannon 2 | . . . 2 Ballistic Gun 13 | 3 . 4 6 Ballistic Cannon . | . . . . Launcher 1 | . . . 1 Special Weapon 1 | . . . 1 Impact Weapon . | . . . . Slashing Weapon . | . . . . Piercing Weapon . | . . . . Special Melee Weapon . | . . . . Unidentified Prototypes 3 | . . . 3 Parts Lost 18 | . . 3 15 Power 1 | . . . 1 Propulsion 6 | . . 2 4 Utility 5 | . . . 5 Weapon 6 | . . 1 5 Highest Loss Streak 12 | . . 2 12 To Critical Strikes 3 | . . 1 2 Average Slot Usage (%) 94 | . 95 92 94 Engine 10 | . 14 10 8 Core 1 | . . . 2 Leg 7 | . 18 8 . Wheel 15 | . 9 12 20 Device 7 | . . . 15 Storage 11 | . 13 11 11 Processor 6 | . 10 11 2 Protection 2 | . . 5 2 Energy Gun 2 | . . . 5 Energy Cannon 5 | . . . 11 Ballistic Gun 22 | . 28 32 14 Naked Turns . | . . . . Heaviest Build 33 | 14 19 26 33 Greatest Support 32 | 32 32 32 32 Greatest Overweight (x) 6 | . . 1 6 Average Overweight (x) . | . . . . Largest Inventory Capacity 10 | 8 10 10 10 Average Capacity 9 | 6 9 10 10 Most Carried 10 | 4 10 10 10 Average Carried 8 | 2 8 9 8 Final Capacity 10 | 8 10 10 10 Final Carried 10 | 4 10 10 9 Class Distribution -------------------- 40% | Mutant 25% | Gunner 20% | Tank 13% | Scavenger-Tank Dominant Class ---------------- Mutant | -10/Materials Gunner | -9/Materials Tank | -9/Storage Resources | -11 -10 -9 -9 ----------- Run | Yrd Mat Mat Sto Matter Collected 888 | 196 208 200 284 Remotely . | . . . . Salvage Created 1253 | . 151 309 793 Parts 100 | . 12 33 55 Haulers Intercepted . | . . . . Recyclers Shooed 1 | . . 1 . Parts Field Recycled . | . . . . Retrieved Matter . | . . . . Parts Self-Destructed . | . . . . Prevented . | . . . . Kills | -11 -10 -9 -9 ------- Run | Yrd Mat Mat Sto Combat Hostiles Destroyed 29 | . 7 8 14 Guns 25 | . 7 8 10 Cannons 4 | . . . 4 Classes Destroyed 8 | . 2 4 2 Worker 2 | . . 1 1 Mechanic 1 | . . . 1 Operator 2 | . . 1 1 Watcher 3 | . . 1 2 Swarmer 10 | . 6 4 . Grunt 9 | . 1 2 6 Brawler 1 | . . . 1 Sentry 9 | . . 2 7 Best Kill Streak 4 | . 3 4 4 Combat Bots Only 4 | . 3 4 2 Max Kills in Single Turn 2 | . 1 1 2 Gunslinging . | . . . . Exploded . | . . . . Melee . | . . . . Uniques/NPCs Destroyed . | . . . . Combat | -11 -10 -9 -9 -------- Run | Yrd Mat Mat Sto Hostile Shots Fired 202 | . 49 38 115 Missed 37 | . 12 7 18 Damage Taken 2282 | . 338 480 1464 Core 370 | . 57 44 269 Absorbed by Shields 70 | . . . 70 Core Remaining (%) 88 | 100 77 . . Volleys Fired 106 | . 19 23 64 Largest 3 | . 2 3 3 Hottest 159 | . 40 60 159 Shots Fired 248 | . 38 60 150 Gun 216 | . 38 60 118 Cannon 29 | . . . 29 Launcher 2 | . . . 2 Special 1 | . . . 1 Kinetic 191 | . 38 60 93 Thermal 55 | . . . 55 Explosive 2 | . . . 2 Electromagnetic . | . . . . Robot Hit Streak 13 | . 6 11 13 Robot Miss Streak 5 | . 5 4 3 Penetration Max . | . . . . Secondary Targets 2 | . 1 . 1 Max Gunslinging Chain 1 | . 1 . 1 Shots Hit Robots 156 | . 18 41 97 Core Hits 68 | . 8 24 36 Critical Kills 1 | . . . 1 Critical Parts Destroyed . | . . . . Critical Strikes 2 | . . . 2 Burn 1 | . . . 1 Destroy 1 | . . . 1 Melee Attacks . | . . . . Impact . | . . . . Slashing . | . . . . Piercing . | . . . . Sneak Attacks . | . . . . Combat Hostiles . | . . . . Follow-up Attacks . | . . . . Damage Inflicted 2224 | . 239 488 1497 Guns 1550 | . 239 375 936 Cannons 392 | . . . 392 Explosions 282 | . . 113 169 Melee . | . . . . Ramming . | . . . . Kinetic 1291 | . 239 375 677 Thermal 651 | . . . 651 Explosive 282 | . . 113 169 Electromagnetic . | . . . . Impact . | . . . . Slashing . | . . . . Piercing . | . . . . Highest Corruption 24 | . . . 24 Average Corruption 19 | . . . 19 Corruption Purged . | . . . . Corruption Blocked . | . . . . Effects 36 | . . . 36 Message Errors 6 | . . . 6 Matter Fused 5 | . . . 5 Heat Flow Errors 4 | . . . 4 Energy Discharges 7 | . . . 7 Parts Rejected 1 | . . . 1 Data Loss (minor) 8 | . . . 8 Data Loss (major) 2 | . . . 2 Misfires 1 | . . . 1 Misdirections 1 | . . . 1 Weapon Failures 1 | . . . 1 Overload Shots . | . . . . Overflow Damage 6 | . . . 6 Projectiles 6 | . . . 6 Explosions . | . . . . Melee . | . . . . Knockbacks . | . . . . Impact . | . . . . Kinetic . | . . . . Secondary . | . . . . Self-Inflicted Damage 176 | . . 113 63 Shots 3 | . . 1 2 Rammed . | . . . . Targets Rammed . | . . . . Kicked . | . . . . Crushed . | . . . . Highest Temperature 637 | . . 285 637 Average Temperature 156 | . . 94 171 Received Heat Transfer 758 | . 18 165 575 Effects 13 | . . . 13 Shutdowns 2 | . . . 2 Energy Bleed 4 | . . . 4 Interference 4 | . . . 4 Short Circuit 3 | . . . 3 Siege Activations . | . . . . Robots Corrupted . | . . . . Combat Hostiles . | . . . . Parts Fried . | . . . . Impact Corruptions . | . . . . Robots Melted . | . . . . Combat Hostiles . | . . . . Parts Melted 1 | . . . 1 Heat Transferred 1443 | . . . 1443 Parts Sabotaged . | . . . . Parts Stolen . | . . . . Parts Stripped . | . . . . Power Chain Reactions . | . . . . Alert | -11 -10 -9 -9 ------- Run | Yrd Mat Mat Sto Peak Influence 349 | . 165 337 349 Initial 142 | . . 42 142 Average 168 | . 102 150 231 Maximum Alert Level 1 | . . 1 1 Low Security (%) 60 | 100 100 76 24 Level 1 39 | . . 23 75 Level 2 . | . . . . Level 3 . | . . . . Level 4 . | . . . . Level 5 . | . . . . High Security . | . . . . Max Security . | . . . . Squads Dispatched 4 | . 1 . 3 Investigation 1 | . . . 1 Extermination . | . . . . Reinforcement 3 | . 1 . 2 Assault . | . . . . Garrison . | . . . . Intercept . | . . . . Searches Triggered . | . . . . Construction Impeded . | . . . . Haulers Reinforced . | . . . . Active Scanning Responses . | . . . . Cargo Convoy Interrupts . | . . . . Stealth | -11 -10 -9 -9 --------- Run | Yrd Mat Mat Sto Distress Signals 5 | . 1 3 1 Communications Jammed . | . . . . Distress Signals . | . . . . Times Spotted 54 | . 15 14 25 Peak Tracking Total 5 | . 5 5 4 Tactical Retreats 2 | . . . 2 Traps | -11 -10 -9 -9 ------- Run | Yrd Mat Mat Sto Traps Triggered 2 | . 1 . 1 Indirectly . | . . . . Trap Hack Attempts . | . . . . Triggered . | . . . . Disarmed . | . . . . Reprogrammed . | . . . . Reused . | . . . . Traps Extracted . | . . . . Installed . | . . . . Triggered . | . . . . Machines | -11 -10 -9 -9 ---------- Run | Yrd Mat Mat Sto Machines Disabled 5 | . 1 2 2 Max in Single Turn 2 | . 1 2 1 Machines Repaired . | . . . . Machines Dismantled . | . . . . Machines Sabotaged . | . . . . Overloaded Fab Kills . | . . . . Hacking | -11 -10 -9 -9 --------- Run | Yrd Mat Mat Sto Machines Accessed 9 | . 4 1 4 Terminals 9 | . 4 1 4 Fabricators . | . . . . Repair Stations . | . . . . Recycling Units . | . . . . Scanalyzers . | . . . . Garrison Access . | . . . . Total Hacks 18 | . 6 1 11 Successful 12 | . 4 1 7 Failed 6 | . 2 . 4 Catastrophic . | . . . . Database Lockouts . | . . . . Manual 2 | . . . 2 Terminals 18 | . 6 1 11 Fabricators . | . . . . Repair Stations . | . . . . Recycling Units . | . . . . Scanalyzers . | . . . . Garrison Access . | . . . . Terminal Hacks 12 | . 4 1 7 Record 5 | . 1 . 4 Open Door 1 | . . . 1 Branch Access Points 1 | . . 1 . Alert Level 1 | . . . 1 Locate Traps 1 | . 1 . . Dispatch Records 2 | . 1 . 1 Hauler Manifests 1 | . 1 . . Fabricator Hacks . | . . . . Repair Station Hacks . | . . . . Recycling Unit Hacks . | . . . . Scanalyzer . | . . . . Garrison Access Hacks . | . . . . Unauthorized Hacks . | . . . . Terminals . | . . . . Fabricators . | . . . . Repair Stations . | . . . . Recycling Units . | . . . . Scanalyzers . | . . . . Garrison Access . | . . . . Data Cores Recovered 2 | . . 1 1 Used 1 | . . . 1 Hacking Detections 6 | . 2 . 4 Full Trace Events 1 | . . . 1 Feedback Events 1 | . . . 1 Corruption 1 | . . . 1 Feedback Blocked . | . . . . Robot Schematics Acquired . | . . . . Robots Built . | . . . . Authchips . | . . . . Time . | . . . . Total Robot Build Rating . | . . . . Part Schematics Acquired . | . . . . Parts Built . | . . . . Authchips . | . . . . Time . | . . . . Total Part Build Rating . | . . . . Parts Repaired . | . . . . Time . | . . . . Parts Recycled . | . . . . Recycled Matter . | . . . . Retrieved Matter . | . . . . Retrieved Components . | . . . . Parts Scanalyzed . | . . . . Part Schematics Acquired . | . . . . Parts Damaged . | . . . . Bothacking | -11 -10 -9 -9 ------------ Run | Yrd Mat Mat Sto Used RIF Installer . | . . . . Robots Hacked . | . . . . Non-combat . | . . . . Combat . | . . . . Robot Hacks Applied . | . . . . Relay Couplers Released . | . . . . Fabnet Peak Effective % . | . . . . Robots Rewired . | . . . . Allies Hacked . | . . . . Hacks Repelled . | . . . . Allies | -11 -10 -9 -9 -------- Run | Yrd Mat Mat Sto Total Allies . | . . . . Largest Group . | . . . . Highest-Rated Group . | . . . . Highest-Rated Ally . | . . . . Total Orders . | . . . . Ally Attacks . | . . . . Total Damage . | . . . . Kills . | . . . . Allies Corrupted . | . . . . Allies Melted . | . . . . Intel | -11 -10 -9 -9 ------- Run | Yrd Mat Mat Sto Robot Analysis Total . | . . . . Derelict Logs Recovered . | . . . . Drone Launches . | . . . . Drone Recoveries . | . . . . Exploration | -11 -10 -9 -9 ------------- Run | Yrd Mat Mat Sto Turns Passed 1939 | 57 600 396 886 Spaces Moved 1256 | 45 426 248 537 Core 11 | 3 . . 8 Treads . | . . . . Legs 409 | . 302 107 . Wheels 836 | 42 124 141 529 Hover . | . . . . Flight . | . . . . Fastest Speed 50 | 50 100 100 95 Average Speed 105 | 96 114 108 98 Slowest Speed 350 | 100 120 120 350 Overloaded Moves . | . . . . Propulsion Burnouts . | . . . . Robots Hopped . | . . . . Cave-ins Triggered . | . . . . Exploration Rate (%) 38 | 3 59 33 57 Regions Visited 3 Branch Regions 1 Pre-discovered Areas . | . . . . Known Exits Taken 1 | . . 1 . Unknown Exits Taken 2 | 1 1 . . Scrap Searched . | . . . . Spaces Dug . | . . . . Terrain Destroyed 41 | . . 30 11 Melee . | . . . . Projectile . | . . . . AOE 41 | . . 30 11 Terrain Rammed . | . . . . Walls Destroyed . | . . . . Machines Disabled . | . . . . Actions | -11 -10 -9 -9 --------- Run | Yrd Mat Mat Sto Total 1680 | 54 505 337 784 Wait 211 | . 33 36 142 Move 1253 | 44 425 247 537 Hop . | . . . . Pick Up 33 | 3 14 8 8 Fast Attach 21 | 6 1 4 10 Attach 16 | . 3 3 10 Detach 2 | . . 1 1 Swap 10 | 1 2 5 2 Drop 26 | . 8 10 8 Fire 106 | . 19 23 64 Melee . | . . . . Ram . | . . . . Kick . | . . . . Crush . | . . . . Escape Stasis . | . . . . Rewire 2 | . . . 2 Trap . | . . . . Miscellaneous . | . . . . Route ------- -11/Scrapyard -10/Materials -9/Materials (discovered 4 exits: [*Mat] / Min / *Sto x2) -9/Storage History --------- Turn | Location | Event 33 | -11/Scrapyard | Discovered new exit (range 15) 58 | -11/Scrapyard | Entered Materials 306 | -10/Materials | Build established: Mutant 457 | -10/Materials | Discovered new exit (range 5) 658 | -10/Materials | Entered another Materials area 658 | -9/Materials | Evolved 2 slots: Utility x1, Weapon x1 730 | -9/Materials | Identified exit to Mines 730 | -9/Materials | Identified exit to Storage 873 | -9/Materials | Discovered new exit (range 15) 1054 | -9/Materials | Entered Storage 1225 | -9/Storage | System corruption reached 10% 1252 | -9/Storage | Core integrity fell below 50% 1282 | -9/Storage | Lost 12 parts (1p2n4u5w) 1831 | -9/Storage | Build established: Tank 1940 | -9/Storage | Self-destructed Last Messages --------------- 01881_ RIT5&KM:W9FLAHQAWCRV<0H# FE,2 01896_ System corrupted: Component data lost. 01909_ ALERT: Hostiles spotted, dispatching reinforcements to Terminal S004. 01911_ ALERT: Hostiles spotted, dispatching reinforcements to Terminal S005. 01913_ PMIC5ASWLJ|EWRWD7DKNGFRG1>UVE0IWJE8 S 01920_ Broken Shield Generator destroyed. 01923_ Wheel destroyed. 01924_ Y-45 Defender suffers critical hit (Destroy). 01924_ Y-45 Defender destroyed. 01927_ Wheel destroyed. 01927_ G-34 Mercenary destroyed. 01928_ Power failure, Hvy. Ion Engine shutdown. 01928_ K-01 Serf collects debris. 01931_ System corrupted: Component data lost. 01939_ Overheating: System interference. 01939_ ECM Suite temporarily disabled. 01939_ Beam Rifle temporarily disabled. Map ----- +----------------------------------------------------+ | ???# #????# ## T#?????????????????????????????? | | ???# #????#### ## ##?????????????????????????????? | | #### #???????# ## #??????????????????????????????? | | # #???????# ## #??????????????????????????????? | | # #########+##+###????????????????????????????? | | + + #????????????????????????????? | | # ###### "" #????????????????????????????? | | # #????# """"=" #????????????????????????????? | | # #????# "*""*" #????????????????????????????? | | #+## #????# " "" " #????????????????????????????? | | # +????# "["""" #????? ??????????????????????? | | # #????# "" #????? ??????????????????????? | | # #????# #????? ??????????????????????? | | # ##########+######???? ??????????????????????? | | # #???? ??????????????????????? | | + #???? #?????????????????????? | | # #???? ?????????????????????? | | ###+#+################???# ?????????????????????? | | # #??????#####???# ?????????????????????? | | # """" #????###"""#???# ?????????????????????? | | # "??"" !#????# #"Y"##### #?????????????????????? | | # "???"" *###### # #?????????????????????? | | # ""???"[]+ ![+ # #?????????????????????? | | + "???" =###### #=#?????????????????????? | | # "??" #????# #g##????????????????????? | | # #????# """ """*@=[#????????????????????? | | #########/#????# """ """!#%=#????????????????????? | | """" #?# #????# """ """ #![+ ???????????????????? | | """" ### ##???# # ##"??????????????????? | | " "" # ###########+### #????????????????????? | | = +% ?? #????????????????????? | | # T ?? #????????????????????? | | # ############??# #????????????????????? | | ## ##?????????????# #????????????????????? | | ######## #??????????????? #????????????????????? | | ## ##### #??????????????? ????????????????????? | | = ## ##?????????????? ????????????????????? | | ## #?????????????? ????????????????????? | | """ ## #?????????????? ????????????????????? | | """ / #?????????????? #????????????????????? | | """ ## #?????????????? ?????????????????????? | | ## ####??????????????????????????????????? | | ## ???????????????????????????????????? | | ## ??????????????????????????????????? | | ""T"" ## #####??????????^^?????????????????????? | | """"" ## #?????????????????????????????????????? | | ==![ ## ##????????????????????????????????????? | | ##+#### #????????????????????????????????????? | | %% # """ ""?????????????????????????????? | | + ???????????????????????????? | +----------------------------------------------------+ Best States ------------- Heat Dissipation 28 Energy Generation 14 Energy Capacity 280 Matter Stores 300 Matter Capacity 300 Sight Range 16 Terrain Scan Density 10 ECM Strength 1 Armor Coverage 225 Evasion (%) 55 Targeting Accuracy 5 Item Schematics ----------------- None Robot Schematics ------------------ None Fabricated ------------ Nothing Alien Tech Used ----------------- None Achievements -------------- Dynamic Key Shopping List Challenges ------------ None Game ------ Seed DimensionalProjectionMallet Manual? 0 Play Time 00:32:19 Cumulative 8.7 hours Start 2024.04.22 @ 05:47:36 End 2024.04.24 @ 01:54:53 Sessions 3 Manual Loads 0 Difficulty Rogue Special Mode None Game No. 13 Rogue 13 Adventurer 0 Explorer 0 Win Type - Total 0 Types 0/0/0/0/0/0/0/0/0 Lore% 14 Gallery% 13 Achievement% 10 Wizard Run 0 Options --------- Layout 1 ASCII 0 Keyboard 1 Movement Arrows Keybinds 0 Fullscreen 2 Font 24/Smallcaps Map View 50x35 Zoom Use 0% Tactical HUD 1 Map Filters NONE Filters NONE Steam 1 RUN: 9df82394-f80d-4a76-8bc4-aa9f0d00fd9e